Cogmind - Beta 16 @@@ ROGUE MODE // 2025.11.07 @ 22:42:54 Player: szymekc Result: Self-destructed Performance ------------- Evolutions (4) 2000 Regions Visited (4) 800 Robots Destroyed (0) 0 Value Destroyed (0) 0 Prototype IDs (9) 180 Alien Tech Used (0) 0 Bonus (664) 664 TOTAL SCORE: 3644 Bonus ------- Pacifist 364 Registered with UFD 300 Cogmind --------- Core Integrity 850/850 Matter 210/300 Energy 240/240 System Corruption 0% Temperature Cool (0) Movement Walking (115) Location -6/Factory Parts ------- > --- POWER (1) -------- Nuclear Core > --- PROPULSION (4) --- Aluminum Leg Overtuned Titanium Leg Flexi-carbon Leg Armored Leg > --- UTILITY (8) ------ Scrap Suit Large Storage Unit Advanced Terrain Scanner Advanced Terrain Scan Processor Improved Light Armor Plating Hacking Suite Improved Hacking Suite > --- WEAPON (2) ------- Heavy Machine Gun Companion Sword > --- INVENTORY (15) --- Aluminum Leg Experimental Sensor Array Microactuators Hardened Heavy Armor Plating Layered Medium Armor Plating Shield Generator Force Field A0-MCA's Component Scanner Peak State ------------ > --- POWER ------------ Nuclear Core > --- PROPULSION ------- Aluminum Leg Overtuned Titanium Leg Flexi-carbon Leg Armored Leg > --- UTILITY ---------- Scrap Suit Large Storage Unit Advanced Terrain Scanner Advanced Terrain Scan Processor Improved Light Armor Plating Hacking Suite Improved Hacking Suite > --- WEAPON ----------- Companion Sword > --- INVENTORY -------- Aluminum Leg Experimental Sensor Array Microactuators Hardened Heavy Armor Plating Layered Medium Armor Plating Shield Generator Force Field A0-MCA's Component Scanner [Rating: 56] Favorites ----------- Power Nuclear Core Engine Light Ion Engine Power Core Nuclear Core Propulsion Aluminum Leg Leg Aluminum Leg Utility Improved Light Armor Plating Device Shield Generator Storage Large Storage Unit Processor Advanced Terrain Scan Processor Hackware Hacking Suite Protection Improved Light Armor Plating Weapon Companion Sword Slashing Weapon Companion Sword Build | -11 -10 -10 -8 -6 ------- Run | Yrd Mat Sub Scr Fac Slots Evolved 8 | . . . . 8 Power . | . . . . . Propulsion 2 | . . . . 2 Utility 6 | . . . . 6 Weapon . | . . . . . Parts Attached 19 | 4 1 . 5 9 Power 3 | 2 . . 1 . Engine 2 | 2 . . . . Core 1 | . . . 1 . Reactor . | . . . . . Propulsion 5 | 2 . . . 3 Treads . | . . . . . Leg 5 | 2 . . . 3 Wheel . | . . . . . Hover . | . . . . . Flight . | . . . . . Utility 10 | . 1 . 3 6 Device 4 | . . . 1 3 Storage 1 | . . . 1 . Processor 1 | . . . . 1 Hackware 2 | . . . . 2 Protection 2 | . 1 . 1 . Artifact . | . . . . . Weapon 1 | . . . 1 . Energy Gun . | . . . . . Energy Cannon . | . . . . . Ballistic Gun . | . . . . . Ballistic Cannon . | . . . . . Launcher . | . . . . . Special Weapon . | . . . . . Impact Weapon . | . . . . . Slashing Weapon 1 | . . . 1 . Piercing Weapon . | . . . . . Special Melee Weapon . | . . . . . Unidentified Prototypes 1 | . . . 1 . Parts Lost . | . . . . . Power . | . . . . . Propulsion . | . . . . . Utility . | . . . . . Weapon . | . . . . . Highest Loss Streak . | . . . . . To Critical Strikes . | . . . . . Average Backups 5 | . 2 3 6 6 Power . | . 1 2 . . Propulsion . | . . . . . Utility 4 | . . 1 5 6 Weapon . | . . . . . Tool/Special . | . . . . . Unused Backups 6 | . . . 2 4 Power . | . . . . . Propulsion . | . . . . . Utility 5 | . . . 1 4 Weapon . | . . . . . Tool/Special 1 | . . . 1 . Average Slot Usage (%) 69 | . 32 42 76 72 Engine 1 | . 1 . 2 . Core 7 | . . . 9 6 Leg 27 | . 28 28 28 22 Device 2 | . . . 2 13 Storage 5 | . . . 6 6 Protection 11 | . 3 14 14 6 Slashing Weapon 10 | . . . 12 6 Peak Build Rating 56 | 3 3 3 20 56 Average Rating 15 | 2 2 3 16 44 On Entrance 5 | . 3 3 3 20 Avg Prop Armor Cover (%) 29 | . 33 22 21 . Naked Turns . | . . . . . Heaviest Build 40 | 5 5 3 34 40 Greatest Support 65 | 20 20 3 20 65 Greatest Overweight (x) 2 | . . . 2 1 Average Overweight (x) . | . . . . . Largest Inventory Capacity 15 | 5 5 5 15 15 Average Capacity 9 | 5 5 5 9 15 Most Carried 11 | 1 3 3 11 10 Average Carried 6 | . 2 3 7 7 Final Capacity 15 | 5 5 5 15 15 Final Carried 11 | 1 3 3 11 9 Scrap Suit Usage (%) 7 | . . . . 99 Class Distribution -------------------- 97% | Mutant Dominant Class ---------------- Mutant | -10/Materials Mutant | -10/Subcaves Mutant | -8/Scraptown Mutant | -6/Factory Resources | -11 -10 -10 -8 -6 ----------- Run | Yrd Mat Sub Scr Fac Matter Collected 350 | 240 . . 110 . Remotely . | . . . . . Salvage Created 236 | . . . 236 . Parts 6 | . . . 6 . Haulers Intercepted . | . . . . . Recyclers Shooed . | . . . . . Parts Field Recycled . | . . . . . Retrieved Matter . | . . . . . Parts Self-Destructed 6 | . . . 6 . Prevented . | . . . . . Parts Restored . | . . . . . Kills | -11 -10 -10 -8 -6 ------- Run | Yrd Mat Sub Scr Fac Combat Hostiles Destroyed . | . . . . . Classes Destroyed . | . . . . . Best Kill Streak . | . . . . . Combat Bots Only . | . . . . . Max Kills in Single Turn . | . . . . . Gunslinging . | . . . . . Exploded . | . . . . . Melee . | . . . . . Uniques/NPCs Destroyed . | . . . . . Combat | -11 -10 -10 -8 -6 -------- Run | Yrd Mat Sub Scr Fac Hostile Shots Fired 6 | . 5 1 . . Missed 2 | . 2 . . . Hits 4 | . 3 1 . . Projectile 4 | . 3 1 . . Damage Taken 65 | . 46 10 9 . Core 29 | . 10 10 9 . Absorbed by Shields . | . . . . . Core Remaining (%) 94 | 100 . . 88 . Volleys Fired . | . . . . . Largest . | . . . . . Hottest . | . . . . . Shots Fired . | . . . . . Gun . | . . . . . Cannon . | . . . . . Launcher . | . . . . . Special . | . . . . . Kinetic . | . . . . . Thermal . | . . . . . Explosive . | . . . . . Electromagnetic . | . . . . . Robot Hit Streak . | . . . . . Robot Miss Streak . | . . . . . Penetration Max . | . . . . . Secondary Targets . | . . . . . Shots Hit Robots 13 | . . . 13 . Core Hits 2 | . . . 2 . Critical Kills . | . . . . . Critical Parts Destroyed . | . . . . . Critical Strikes . | . . . . . Melee Attacks 14 | . . . 13 1 Impact . | . . . . . Slashing 14 | . . . 13 1 Piercing . | . . . . . Sneak Attacks . | . . . . . Combat Hostiles . | . . . . . Follow-up Attacks . | . . . . . Damage Inflicted 872 | . 2 . 870 . Guns . | . . . . . Cannons . | . . . . . Explosions . | . . . . . Melee 870 | . . . 870 . Ramming 2 | . 2 . . . Kinetic . | . . . . . Thermal . | . . . . . Explosive . | . . . . . Electromagnetic . | . . . . . Impact . | . . . . . Slashing 870 | . . . 870 . Piercing . | . . . . . Highest Corruption 1 | . 1 1 . . Average Corruption 1 | . 1 1 . . Corruption Purged . | . . . . . Corruption Blocked . | . . . . . Effects 1 | . . 1 . . Message Errors 1 | . . 1 . . Overload Shots . | . . . . . Overflow Damage 208 | . . . 208 . Projectiles . | . . . . . Explosions . | . . . . . Melee 208 | . . . 208 . Knockbacks . | . . . . . Impact . | . . . . . Kinetic . | . . . . . Secondary . | . . . . . Self-Inflicted Damage . | . . . . . Shots . | . . . . . Rammed . | . . . . . Targets Rammed 2 | . 2 . . . Kicked 2 | . 2 . . . Crushed . | . . . . . Highest Temperature . | . . . . . Average Temperature . | . . . . . Received Heat Transfer 24 | . 24 . . . Siege Activations . | . . . . . Martial Activations . | . . . . . Shielding Activations . | . . . . . Robots Disrupted . | . . . . . Combat Hostiles . | . . . . . Robots Corrupted . | . . . . . Combat Hostiles . | . . . . . Parts Fried . | . . . . . Impact Corruptions . | . . . . . Robots Melted . | . . . . . Combat Hostiles . | . . . . . Parts Melted . | . . . . . Heat Transferred . | . . . . . Parts Sabotaged . | . . . . . Parts Stolen . | . . . . . Parts Stripped . | . . . . . Power Chain Reactions . | . . . . . Alert | -11 -10 -10 -8 -6 ------- Run | Yrd Mat Sub Scr Fac Maximum Alert Level . | . . . . . Low Security (%) 100 | 100 100 . . 100 Level 1 . | . . . . . Level 2 . | . . . . . Level 3 . | . . . . . Level 4 . | . . . . . Level 5 . | . . . . . High Security . | . . . . . Max Security . | . . . . . Peak Influence 90 | . 90 . . 1 Initial . | . . . . . Average 17 | . 28 . . . Influence Increases 146 | . 120 . 25 1 Destroy 0b10 Robot/NC 25 | . . . 25 . Destroy Structure 1 | . . . . 1 Lose Combat Pursuer 120 | . 120 . . . Influence Decreases 145 | . 120 . 21 4 Entered New Map 4 | . . . . 4 Time Decay 141 | . 120 . 21 . Squads Dispatched 1 | . 1 . . . Investigation . | . . . . . Extermination . | . . . . . Reinforcement 1 | . 1 . . . Assault . | . . . . . Garrison . | . . . . . Intercept . | . . . . . Searches Triggered . | . . . . . Construction Impeded . | . . . . . Haulers Reinforced . | . . . . . Active Scanning Responses . | . . . . . Cargo Convoy Interrupts . | . . . . . Stealth | -11 -10 -10 -8 -6 --------- Run | Yrd Mat Sub Scr Fac Distress Signals . | . . . . . Communications Jammed . | . . . . . Distress Signals . | . . . . . Times Spotted 15 | . 13 2 . . Peak Tracking Total 5 | . 5 4 . . Tactical Retreats 2 | . 2 . . . Traps | -11 -10 -10 -8 -6 ------- Run | Yrd Mat Sub Scr Fac Traps Triggered 3 | . 3 . . . Indirectly . | . . . . . Trap Hack Attempts . | . . . . . Triggered . | . . . . . Disarmed . | . . . . . Reprogrammed . | . . . . . Reused . | . . . . . Traps Extracted . | . . . . . Installed . | . . . . . Triggered . | . . . . . Machines | -11 -10 -10 -8 -6 ---------- Run | Yrd Mat Sub Scr Fac Machines Disabled . | . . . . . Max in Single Turn . | . . . . . Machines Repaired . | . . . . . Machines Dismantled . | . . . . . Machines Sabotaged . | . . . . . Overloaded Fab Kills . | . . . . . Hacking | -11 -10 -10 -8 -6 --------- Run | Yrd Mat Sub Scr Fac Machines Accessed 7 | . 1 . 2 4 Terminals 2 | . 1 . . 1 Fabricators . | . . . . . Repair Stations . | . . . . . Recycling Units 2 | . . . . 2 Scanalyzers 1 | . . . . 1 Garrison Access . | . . . . . Total Hacks 17 | . 3 . 6 8 Successful 14 | . 2 . 6 6 Failed 3 | . 1 . . 2 Catastrophic 1 | . . . . 1 Database Lockouts . | . . . . . Manual 4 | . . . . 4 Terminals 5 | . 3 . . 2 Fabricators . | . . . . . Repair Stations . | . . . . . Recycling Units 5 | . . . . 5 Scanalyzers 1 | . . . . 1 Garrison Access . | . . . . . Terminal Hacks 8 | . 2 . 6 . Record 5 | . . . 5 . Prototype ID Bank 1 | . 1 . . . Open Door 1 | . . . 1 . Hauler Manifests 1 | . 1 . . . Fabricator Hacks . | . . . . . Repair Station Hacks . | . . . . . Recycling Unit Hacks 2 | . . . . 2 Retrieve Components 2 | . . . . 2 Scanalyzer . | . . . . . Garrison Access Hacks . | . . . . . Unauthorized Hacks 4 | . . . . 4 Terminals 1 | . . . . 1 Skim 1 | . . . . 1 Fabricators . | . . . . . Repair Stations . | . . . . . Recycling Units 3 | . . . . 3 Reject 2 | . . . . 2 Mask 1 | . . . . 1 Scanalyzers . | . . . . . Garrison Access . | . . . . . Data Cores Recovered . | . . . . . Used . | . . . . . Hacking Detections 2 | . . . . 2 Full Trace Events . | . . . . . Feedback Events . | . . . . . Feedback Blocked . | . . . . . Robot Schematics Acquired . | . . . . . Robots Built . | . . . . . Authchips . | . . . . . Time . | . . . . . Total Robot Build Rating . | . . . . . Part Schematics Acquired . | . . . . . Parts Built . | . . . . . Authchips . | . . . . . Time . | . . . . . Total Part Build Rating . | . . . . . Part Studies Acquired . | . . . . . Parts Repaired . | . . . . . Time . | . . . . . Parts Recycled . | . . . . . Recycled Matter . | . . . . . Retrieved Matter . | . . . . . Retrieved Components 3 | . . . . 3 Parts Scanalyzed . | . . . . . Part Schematics Acquired . | . . . . . Parts Damaged . | . . . . . Bothacking | -11 -10 -10 -8 -6 ------------ Run | Yrd Mat Sub Scr Fac Used RIF Installer . | . . . . . Robots Hacked . | . . . . . Non-combat . | . . . . . Combat . | . . . . . Robot Hacks Applied . | . . . . . Relay Couplers Released . | . . . . . Fabnet Peak Effective % . | . . . . . Robots Rewired . | . . . . . Allies Hacked . | . . . . . Hacks Repelled . | . . . . . Allies | -11 -10 -10 -8 -6 -------- Run | Yrd Mat Sub Scr Fac Total Allies . | . . . . . Largest Group . | . . . . . Highest-Rated Group . | . . . . . Highest-Rated Ally . | . . . . . Total Orders . | . . . . . Ally Attacks . | . . . . . Total Damage . | . . . . . Kills . | . . . . . Allies Corrupted . | . . . . . Allies Melted . | . . . . . Intel | -11 -10 -10 -8 -6 ------- Run | Yrd Mat Sub Scr Fac Active Infowar (turns) 169 | . . . . 169 Sensors 54 | . . . . 54 Terrain 140 | . . . . 140 Robot Analysis Total . | . . . . . Derelict Logs Recovered . | . . . . . Drone Launches . | . . . . . Drone Recoveries . | . . . . . Exploration | -11 -10 -10 -8 -6 ------------- Run | Yrd Mat Sub Scr Fac Turns Passed 2229 | 54 334 12 1658 171 Spaces Moved 2001 | 45 578 19 1231 128 Core 799 | 8 533 19 239 . Treads . | . . . . . Legs 1202 | 37 45 . 992 128 Wheels . | . . . . . Hover . | . . . . . Flight . | . . . . . Fastest Speed 50 | 50 50 50 50 113 Average Speed 106 | 107 55 50 130 120 Slowest Speed 190 | 120 120 50 190 183 Overloaded Moves . | . . . . . Propulsion Burnouts . | . . . . . Robots Hopped . | . . . . . Potential Cave-ins . | . . . . . Cave-ins Triggered . | . . . . . Exploration Rate (%) 38 | 4 96 2 88 4 Regions Visited 4 Branch Regions 2 Pre-discovered Areas . | . . . . . Known Exits Taken . | . . . . . Unknown Exits Taken 4 | 1 1 1 1 . Scrap Searched 7 | . . . 7 . Spaces Dug 1 | . . . . 1 Terrain Destroyed 1 | . . . . 1 Melee 1 | . . . . 1 Projectile . | . . . . . AOE . | . . . . . Terrain Rammed . | . . . . . Walls Destroyed . | . . . . . Machines Disabled . | . . . . . Actions | -11 -10 -10 -8 -6 --------- Run | Yrd Mat Sub Scr Fac Total 2064 | 48 589 20 1265 142 Wait 5 | . 3 2 . . Move 1997 | 44 577 18 1230 128 Hop . | . . . . . Pick Up 13 | . 1 . 10 2 Fast Attach 15 | 3 5 . 3 4 Attach 6 | . . . 1 5 Detach 4 | . 1 . 1 2 Swap 3 | 1 . . 2 . Drop 5 | . . . 5 . Fire . | . . . . . Melee 14 | . . . 13 1 Ram . | . . . . . Kick 2 | . 2 . . . Crush . | . . . . . Escape Stasis . | . . . . . Rewire . | . . . . . Trap . | . . . . . Miscellaneous . | . . . . . Route ------- -11/Scrapyard -10/Materials (discovered 6 exits: [*Mat x3] / [*Min x2] / [*Sub]) -10/Subcaves -8/Scraptown (discovered 2 exits: *Fac x2) -6/Factory History --------- Turn | Location | Event 4 | -11/Scrapyard | Discovered new exit (range 16) 55 | -11/Scrapyard | Entered Materials 97 | -10/Materials | Discovered new exit (range 6) 107 | -10/Materials | Discovered new exit (range 13) 152 | -10/Materials | Discovered new exit (range 6) 175 | -10/Materials | Discovered new exit (range 7) 259 | -10/Materials | Discovered new exit (range 6) 317 | -10/Materials | Discovered new exit (range 6) 320 | -10/Materials | Build established: Mutant 389 | -10/Materials | Entered Subcaves 390 | -10/Subcaves | Approached by a straggling Scientist 401 | -10/Subcaves | Entered Scraptown 401 | -8/Scraptown | System corruption cleaned by C-Scrubber 488 | -8/Scraptown | Visited UFD Registry 488 | -8/Scraptown | Registered with UFD as "Mattercoil" 499 | -8/Scraptown | Visited DA-N13 Charitable Foundation 504 | -8/Scraptown | Found DCF Scrap (27 items) 518 | -8/Scraptown | Visited Sword Containment 523 | -8/Scraptown | Found Prototype Slashing Weapon 523 | -8/Scraptown | Identified Companion Sword 559 | -8/Scraptown | Visited Junk Cannon Lab 697 | -8/Scraptown | Visited Infowarlord's Domain 703 | -8/Scraptown | Found Exp. Sensor Array 722 | -8/Scraptown | Visited Research Penetration Think Tank 748 | -8/Scraptown | Visited Abandonware Association 760 | -8/Scraptown | Learned abandonware demo "TRNCOAT.EXE" 781 | -8/Scraptown | Visited LU-1G1's Boring Crew 826 | -8/Scraptown | Visited Science Testing Area 848 | -8/Scraptown | Visited Scrapoid Pod Storage 871 | -8/Scraptown | Visited A0-MCA Data Center 878 | -8/Scraptown | Given a B+ rating by A0-MCA 883 | -8/Scraptown | Found A0-MCA's Component Scanner 1013 | -8/Scraptown | Visited Fellowship of the Rings 1039 | -8/Scraptown | Visited Cave Peace 1079 | -8/Scraptown | Heard Great Nut preacher, LISTEN AND RECITE! 1117 | -8/Scraptown | Discovered new exit (range 11) 1552 | -8/Scraptown | Visited Symbiants 1569 | -8/Scraptown | Visited Comm Corps 1594 | -8/Scraptown | Visited Scrapoid Research Area 1626 | -8/Scraptown | Visited TADAMA 1793 | -8/Scraptown | Found Scrap Suit 2053 | -8/Scraptown | Discovered new exit (range 3) 2059 | -8/Scraptown | Entered Factory 2059 | -6/Factory | Evolved 8 slots: Propulsion x2, Utility x6 2230 | -6/Factory | Self-destructed Last Messages --------------- Trojan loaded successfully. Testing... Terminal linked with 0 systems. Please expand to 4 more systems! 02212_ Acquired Flexi-carbon Leg. Companion Sword: "Making shortcuts, are we?" 02227_ Connecting with Recycling Unit... >>Retrieve(Components) Retrieving 1 components... Lyr. Medium Armor Plating >>Trojan(Reject) Trojan loaded successfully. Testing... Ejection routine running. >>Trojan(Mask) Trojan loaded successfully. Testing... Masking routine running. 02227_ Acquired Lyr. Medium Armor Plating. 02230_ Scrap Suit secures Hvy. Machine Gun. Map ----- +----------------------------------------------------+ | | | | | | | | | | | | | | | | | | | | | | | | | | | | | | | ?????????#?#??###############?##?#########??###### | | ??????????#?###?# / #?##################?# | | ?????#?#?#?##???# ! #?####?####?########## | | ?????????????#?## #?#####??############# | | ?????????#?#????# ########### ###### | | ????????####?#?## / ! + + #?###? | | ????????#??#? + ##### # ####?# | | ???? ? ?###?? ?# ! #??## # ###### | | ?????? + #####+#######?### + ##?### | | ?? ??? ##??## ############ ## ###### | | ?????? ????## ;@ ##### ## # | | ???????#???## # #### # # "" | | ?????"?#????# #"" + T + # Y" | | ?????? #??### #"Y #### # # !*"" | | ??? ? ???##?# #"" ##### ## # | | ???????????## # [ ##### ## #! | | ???? ????? ############ ###########+# | | ?????? ? ? # | | ????????? =] ########+################# # | | ????????? =! """ # ? ? ############## # | | ???????"? ? ]* """ #? ? " # # # | | ???????????? */???" ? ? ? "" # "" # # | | ??????? ? ? ? ? ? # " ? " G # """" "" # # | | ???????? ???? ?? ? " " " "" # """" "" # + | | ?????????? ? ?????###? ? " " ?" # """" S # # | | ????????????????????#?# ? "?" # """" "" # # | | ???????????#??#????#?##?" ??? # "" # | | ?????????????????????## ??" ? # """" "" # | | ??????????????? ????##? " " "? # """" + | | ????????????????????#?#?" "?" ? ?# """" # | | ????????????????????????? " "? ?# """" # | | ?????????????????????#??????? ? # # | | ??????????????????????????#???+#############+### | | ??????????????????????????# ? ? ? | | ???????????????????????????? ?? ???? | +----------------------------------------------------+ Best States ------------- Heat Dissipation 37 Energy Generation 14 Energy Capacity 250 Matter Stores 300 Matter Capacity 300 Sight Range 16 Robot Scan Range 20 Terrain Scan Range 20 Terrain Scan Density 210 Armor Coverage 150 Evasion (%) 55 Offensive Hacking 22 Item Schematics ----------------- None Robot Schematics ------------------ None Fabricated ------------ Nothing Repaired ---------- Nothing Studied --------- None Alien Tech Used ----------------- None Achievements -------------- None Challenges ------------ None Game ------ Seed PropulsionDisruptionMount Manual? 0 Play Time 00:13:50 Cumulative 984.2 hours Start 2025.11.07 @ 22:30:17 End 2025.11.07 @ 22:42:54 Sessions 1 Manual Loads 0 Difficulty Rogue Special Mode None Game No. 307 Rogue 305 Adventurer 2 Explorer 0 Win Type - Total 69 Types 20/16/15/1/1/1/11/1/1/2 Lore% 97 Gallery% 94 Achievement% 81 Wizard Run 0 Options --------- Layout 0 ASCII 0 Keyboard 1 Movement Numpad Keybinds 0 Fullscreen 1 Font 24/Smallcaps Map View 76x50 Zoom Use 0% Tactical HUD 1 Map Filters NONE Filters NONE Steam 1 RUN: 74532a00-ad6b-43ee-b30d-47f8853a2957